bitfinex-derivatives/quotes_ETHF0:USTF0_20250217
["timestamp","ask_amount","ask_price","bid_price","bid_amount"]
[1739827348002,2.445,2747.7,2747.4,3.2078]
[1739827351010,2.441,2747.7,2747.4,3.2078]
[1739827351200,8.3914,2747.7,2747.1,3.2078]
[1739827351409,0.58228,2747.5,2747.0,3.127]
[1739827351811,0.58225,2747.6,2747.1,3.2078]
[1739827352012,8.3914,2747.7,2747.1,3.2078]
[1739827352013,0.64662584,2747.5,2747.1,3.2078]
[1739827352214,0.00254733,2748.0,2747.4,3.2078]
[1739827352514,0.582,2748.8,2747.9,7.9159093]
[1739827352715,0.06434323,2748.7,2748.2,3.2078]
[1739827352915,3.2078,2748.7,2748.2,3.2078]
[1739827353108,0.58209,2748.3,2748.2,0.00546418]
[1739827353412,0.64643474,2748.3,2748.2,0.00546418]
[1739827353610,9.69283474,2748.3,2748.2,0.00546418]
[1739827353911,9.69284355,2748.3,2748.2,0.00546418]
[1739827354109,12.19684355,2748.3,2748.2,0.00546418]
[1739827354300,0.58222,2747.7,2747.5,2.8651]
[1739827354504,2.503,2747.6,2747.5,2.8651]
[1739827354709,3.08525,2747.6,2747.4,3.0318]
[1739827355306,3.08525,2747.6,2747.4,6.2396]
[1739827355506,2.503,2747.6,2747.2,0.00546418]
[1739827355713,0.5823,2747.4,2747.2,0.00546418]
[1739827355913,0.5823,2747.3,2747.2,0.00546418]
[1739827356109,3.0464,2747.5,2747.2,0.00546418]
[1739827356302,0.58228,2747.4,2747.2,0.00546418]
[1739827356507,3.62868,2747.5,2747.2,0.00546418]
[1739827357220,3.0464,2747.5,2747.2,0.00546418]
[1739827357411,3.62867,2747.5,2747.2,0.00546418]
[1739827357613,3.0464,2747.5,2747.2,0.00546418]
[1739827357807,3.62867,2747.5,2747.2,0.00546418]
[1739827358016,3.0464,2747.5,2747.2,0.00546418]
[1739827358317,3.62866,2747.5,2747.2,0.00546418]
[1739827358514,3.0464,2747.5,2747.2,0.00546418]
[1739827358717,0.58229,2747.4,2747.2,0.00546418]
[1739827359214,0.5823,2747.3,2747.2,0.00546418]
[1739827359716,0.5823,2747.4,2747.2,0.00546418]
[1739827360307,0.5823,2747.3,2747.2,0.00546418]
[1739827360511,0.5823,2747.4,2747.2,0.00546418]
[1739827360712,3.0464,2747.5,2747.2,0.00546418]
[1739827361013,0.5823,2747.3,2747.2,0.00546418]
[1739827362318,3.0464,2747.5,2747.2,0.00546418]
[1739827362521,0.5823,2747.3,2747.2,0.00546418]
[1739827363113,0.64667166,2747.3,2747.2,0.00546418]
[1739827363613,0.64667631,2747.3,2747.2,0.00546418]
[1739827363818,9.73967631,2747.3,2747.2,0.00546418]
[1739827365415,3.73967631,2747.3,2747.2,0.00546418]
[1739827366110,0.06437631,2747.3,2747.2,0.00546418]
[1739827366312,0.00546418,2747.8,2747.2,6.96672494]
[1739827366622,0.00546418,2747.8,2747.7,3.2078]
[1739827375122,0.00546418,2747.8,2747.4,3.1224]
[1739827375123,3.75892494,2747.8,2747.4,3.2078]
[1739827375422,2.537,2747.7,2747.4,3.2078]
[1739827377226,3.11923,2747.7,2747.4,3.2078]
[1739827377626,2.537,2747.7,2747.4,3.2078]
[1739827378431,3.11922,2747.7,2747.4,3.2078]
[1739827380430,3.11923,2747.7,2747.4,3.2078]
[1739827380627,2.537,2747.7,2747.4,3.2078]
[1739827380832,2.529,2747.7,2747.4,3.2078]
[1739827381329,2.529,2747.7,2747.4,6.1973]
[1739827381728,2.529,2747.7,2747.4,3.2078]
[1739827382448,3.11124,2747.7,2747.4,3.2078]
[1739827383227,3.11123,2747.7,2747.4,3.2078]
[1739827383829,2.529,2747.7,2747.4,3.2078]
[1739827384633,0.00546418,2747.8,2747.4,3.2078]
[1739827384831,2.53046418,2747.8,2747.7,3.2078]
[1739827387335,2.53046418,2747.8,2747.7,6.2665]
[1739827387731,2.53046418,2747.8,2747.7,3.2078]
[1739827387931,2.53046418,2747.8,2747.3,6.67186076]
[1739827387932,3.11266418,2747.8,2747.4,6.2665]
[1739827388240,3.11267418,2747.8,2747.4,6.2665]
[1739827388441,0.58223,2747.7,2747.4,6.2665]
[1739827389035,2.53046418,2747.8,2747.4,6.2665]
[1739827389235,3.11268418,2747.8,2747.4,6.2665]
[1739827389532,2.53046418,2747.8,2747.4,6.2665]
[1739827389728,0.58225,2747.6,2747.4,6.2665]
[1739827390141,3.52265,2747.6,2747.4,6.2665]
[1739827390536,2.9404,2747.6,2747.4,6.2665]
[1739827390738,2.9404,2747.6,2747.4,3.2078]
[1739827390941,0.58226,2747.5,2747.4,3.2078]
[1739827391137,0.58226,2747.5,2747.3,2.9184]
[1739827391344,2.517,2747.4,2747.3,2.9184]
[1739827391838,0.00546418,2747.8,2747.3,2.9184]
[1739827392039,2.572,2748.7,2747.6,6.96126076]
[1739827392239,2.9404,2748.4,2747.9,3.2078]
[1739827392540,0.06408911,2748.3,2748.0,2.8872]
[1739827392940,0.06408911,2748.3,2747.5,3.2078]
[1739827392941,12.37046076,2748.2,2747.5,3.2078]
[1739827393140,9.80146076,2747.8,2747.1,3.2078]
[1739827393337,0.58227,2747.5,2747.1,3.2078]
[1739827393539,0.58226,2747.5,2747.1,3.2078]
[1739827393940,11.4355,2747.7,2747.1,3.2078]
[1739827394140,0.58228,2747.5,2747.1,3.2078]
[1739827394843,11.4355,2747.7,2747.1,3.2078]
[1739827395045,0.58228,2747.5,2747.1,6.3256]
[1739827395438,0.58225,2747.6,2747.1,6.3256]
[1739827395937,2.574,2747.5,2747.1,6.3256]
[1739827396538,3.15628,2747.5,2747.1,6.3256]
[1739827397046,2.574,2747.5,2747.1,6.3256]
[1739827397758,8.8545,2747.7,2747.1,6.3256]
[1739827397759,5.9466,2747.7,2747.1,6.3256]
[1739827397943,2.573,2747.6,2747.4,3.2078]
[1739827398254,2.573,2747.7,2747.5,3.0908]
[1739827398651,2.573,2747.7,2747.6,3.0504]
[1739827400047,2.571,2747.8,2747.6,3.0504]
[1739827401949,6.63196,2748.0,2747.6,3.0504]
[1739827402150,3.14819,2747.9,2747.6,3.0504]
[1739827402349,2.566,2747.9,2747.6,3.0504]
[1739827402953,0.58222,2747.7,2747.5,3.0908]
[1739827403254,3.14722,2747.7,2747.3,3.0218]
[1739827404048,2.565,2747.7,2747.4,3.2078]
[1739827404458,2.565,2747.7,2747.5,2.9875]
[1739827404857,9.80146076,2748.4,2747.5,2.9875]
[1739827404858,3.2078,2749.1,2747.6,3.75346076]
[1739827405057,0.06407713,2749.0,2748.4,6.96126076]
[1739827405253,0.06407713,2749.0,2748.5,5.7117]
[1739827405953,0.06407713,2749.0,2748.8,3.2078]
[1739827406148,2.9176,2749.4,2748.8,3.2078]
[1739827406149,3.2078,2749.5,2748.8,3.2078]
[1739827406355,0.58196,2749.0,2748.5,8.9195]
[1739827406556,8.4537,2748.9,2748.5,8.9195]
[1739827406756,2.589,2748.9,2748.5,8.92496418]
[1739827407456,6.71951,2749.2,2748.5,8.92496418]
[1739827407657,3.16892,2749.1,2748.5,8.92496418]
[1739827407958,3.2078,2750.0,2748.9,3.75346076]
[1739827408152,3.2078,2750.0,2748.5,5.71716418]
[1739827408153,0.58179,2749.8,2749.3,3.2078]
[1739827408659,2.589,2749.9,2749.3,6.96126076]
[1739827408861,3.2078,2750.0,2749.6,3.75346076]
[1739827409159,0.18202707,2750.3,2749.9,3.75346076]
[1739827409355,0.18202707,2750.3,2750.2,6.96126076]
[1739827409555,3.2078,2750.7,2750.2,6.96126076]
[1739827409861,3.2078,2750.7,2750.2,6.96671481]
[1739827410660,3.2078,2750.7,2750.2,3.21325405]
[1739827411060,3.2078,2750.7,2750.2,5.88145405]
[1739827411258,0.58154,2750.9,2750.2,5.88145405]
[1739827411460,0.58156,2750.9,2750.2,5.88145405]
[1739827411663,3.2078,2751.0,2750.2,5.88145405]
[1739827411863,2.6590312,2750.9,2750.2,5.88145405]
[1739827412158,3.17654,2750.9,2750.2,5.88145405]
[1739827413057,3.17654,2750.9,2750.2,0.00545405]
[1739827413058,0.58167,2750.3,2750.2,0.00545405]
[1739827413261,3.17265,2750.4,2750.2,0.00545405]
[1739827413765,2.591,2750.4,2750.2,0.00545405]
[1739827414065,0.58167,2750.3,2750.2,0.00545405]
[1739827414368,2.591,2750.4,2750.2,0.00545405]
[1739827414860,0.58167,2750.3,2750.2,0.00545405]
[1739827415262,3.2078,2750.3,2749.4,6.3132]
[1739827415460,3.2078,2750.3,2749.7,3.2078]
[1739827415762,2.4374,2750.5,2750.0,3.2078]
[1739827415960,5.0294,2750.5,2750.2,4.69207269]
[1739827416264,0.06403614,2750.4,2750.0,3.2078]
[1739827416460,0.06403614,2750.4,2750.1,0.00545405]
[1739827416658,0.00542028,2750.6,2750.3,3.2078]
[1739827418160,2.592,2750.5,2750.1,0.00545405]
[1739827418661,0.06403333,2750.4,2750.1,0.00545405]
[1739827418970,2.592,2750.5,2750.1,0.00545405]
[1739827420464,0.64569783,2750.4,2750.1,0.00545405]
[1739827420665,0.58166,2750.4,2750.1,0.00545405]
[1739827420963,3.17364,2750.5,2750.1,0.00545405]
[1739827421165,0.06403768,2750.4,2750.1,0.00545405]
[1739827421369,0.64568768,2750.4,2750.1,0.00545405]
[1739827421561,2.592,2750.5,2750.1,0.00545405]
[1739827421562,3.17364,2750.5,2750.1,0.00545405]
[1739827421762,0.64570916,2750.4,2750.1,0.00545405]
[1739827422061,0.58167,2750.4,2750.1,0.00545405]
[1739827422272,5.0566,2750.5,2750.1,0.00545405]
[1739827422559,0.06403806,2750.4,2750.1,0.00545405]
[1739827423167,0.58165,2750.4,2750.1,0.00545405]
[1739827423367,2.592,2750.5,2750.1,0.00545405]
[1739827423570,0.06403657,2750.4,2750.1,0.00545405]
[1739827424765,3.17363,2750.5,2750.1,0.00545405]
[1739827424967,0.06403682,2750.4,2750.1,0.00545405]
[1739827425765,0.58169,2750.2,2750.1,0.00545405]
[1739827426567,0.6457313,2750.2,2750.1,0.00545405]
[1739827427567,1.5183113,2750.2,2749.4,3.1054]
[1739827427761,3.2078,2750.0,2749.4,3.1054]
[1739827427969,0.58182,2749.6,2749.4,3.1054]
[1739827428172,3.15582,2749.6,2749.4,3.1054]
[1739827428374,3.15582,2749.6,2749.3,3.2078]
[1739827428972,2.574,2749.6,2749.2,2.53515405]
[1739827429367,3.15582,2749.6,2749.3,3.2078]
[1739827429569,0.58186,2749.4,2749.3,3.2078]
[1739827430071,0.58185,2749.5,2749.2,0.00545405]
[1739827430262,2.574,2749.6,2749.2,3.21325405]
[1739827430677,3.15582,2749.6,2749.2,3.21325405]
[1739827431270,0.58184,2749.5,2749.2,3.21325405]
[1739827431470,2.574,2749.6,2749.2,3.21325405]
[1739827431670,3.15583,2749.6,2749.2,3.21325405]
[1739827431967,2.574,2749.6,2749.2,3.21325405]
[1739827432279,0.58196,2749.0,2748.7,2.5505]
[1739827432570,3.14896,2749.0,2748.7,2.5505]
[1739827432973,2.567,2749.0,2748.7,2.5505]
[1739827433574,2.567,2749.0,2748.6,0.00545405]
[1739827433775,2.567,2749.0,2747.9,22.736]
[1739827433776,0.58209,2748.3,2747.4,2.566]
[1739827434071,0.5821,2748.3,2748.0,3.2078]
[1739827434275,2.566,2748.4,2748.0,3.2078]
[1739827434477,2.566,2748.4,2747.6,11.98997045]
[1739827434478,2.4738,2748.2,2747.6,11.98997045]
[1739827434666,2.4738,2748.2,2747.6,8.2427]
[1739827434870,0.58214,2748.1,2747.9,3.2078]
[1739827435074,2.566,2748.0,2747.9,3.2078]
[1739827435273,2.566,2748.0,2747.6,2.61975405]
[1739827435679,2.566,2748.0,2747.6,0.00545405]
[1739827435880,0.58218,2747.9,2747.6,0.00545405]
[1739827436090,2.566,2748.0,2747.6,0.00545405]
[1739827436278,3.79002,2747.7,2747.6,0.00545405]
[1739827436484,3.85411991,2747.7,2747.6,0.00545405]
[1739827436979,0.06409991,2747.7,2747.6,0.00545405]
[1739827437283,3.14817,2748.0,2747.6,0.00545405]
[1739827437581,0.06409928,2747.9,2747.6,0.00545405]
[1739827437779,0.64627928,2747.9,2747.6,0.00545405]
[1739827438080,2.566,2748.0,2747.6,0.00545405]
[1739827438275,0.06409718,2747.9,2747.6,0.00545405]
[1739827438676,0.58222,2747.7,2747.6,0.00545405]
[1739827438885,0.64631983,2747.7,2747.6,0.00545405]
[1739827440276,0.64632582,2747.7,2747.6,0.00545405]
[1739827441286,3.85412582,2747.7,2747.6,0.00545405]
[1739827441886,0.06410582,2747.7,2747.6,0.00545405]
[1739827442090,2.561,2747.7,2747.6,0.00545405]
[1739827443176,3.14322,2747.7,2747.6,0.00545405]
[1739827443894,2.561,2747.7,2747.6,0.00545405]
[1739827444382,3.14322,2747.7,2747.6,0.00545405]
[1739827444884,2.561,2747.7,2747.6,0.00545405]
[1739827446787,3.20732089,2747.7,2747.6,0.00545405]
[1739827448087,3.14322,2747.7,2747.6,0.00545405]
[1739827448787,3.20732256,2747.7,2747.6,0.00545405]
[1739827449085,3.14322,2747.7,2747.6,0.00545405]
[1739827449382,3.20732644,2747.7,2747.6,0.00545405]
[1739827449589,6.41512644,2747.7,2747.6,0.00545405]
[1739827450283,0.5824,2746.9,2746.6,3.4948106]
[1739827450486,2.554,2746.9,2746.6,3.2078]
[1739827453184,2.554,2746.9,2746.5,0.00545405]
[1739827454086,0.58242,2746.8,2746.5,0.00545405]
[1739827454591,0.58245,2746.6,2746.5,0.00545405]
[1739827454790,2.554,2746.9,2746.5,0.00545405]
[1739827454991,0.06412703,2746.8,2746.5,0.00545405]
[1739827455189,0.58243,2746.7,2746.5,0.00545405]
[1739827455386,2.554,2746.9,2746.5,0.00545405]
[1739827455387,0.58245,2746.6,2746.5,0.00545405]
[1739827455691,0.58241,2746.8,2746.5,0.00545405]
[1739827455884,2.554,2746.9,2746.5,0.00545405]
[1739827456186,2.554,2746.9,2746.6,3.2078]
[1739827456489,1.51695405,2747.0,2746.6,3.2078]
[1739827456682,0.00545405,2747.0,2746.6,3.2078]
[1739827456890,2.55,2746.9,2746.6,3.2078]
[1739827457588,2.55445405,2747.0,2746.6,3.2078]
[1739827458181,3.13682405,2747.0,2746.6,3.2078]
[1739827458386,2.55445405,2747.0,2746.6,3.2078]
[1739827459794,0.58243,2746.7,2746.6,3.2078]
[1739827459995,8.71189839,2747.0,2746.5,0.00545405]
[1739827460191,0.58245,2746.6,2746.5,0.00545405]
[1739827460386,2.548,2746.6,2746.5,0.00545405]
[1739827463698,2.54845405,2747.0,2746.5,0.00545405]
[1739827463994,3.13082405,2747.0,2746.7,3.2078]
[1739827464293,0.58782405,2747.0,2746.7,3.2078]
[1739827464492,0.00545405,2747.0,2746.7,3.2078]
[1739827468702,0.58783405,2747.0,2746.7,3.2078]
[1739827468901,0.00545405,2747.0,2746.7,3.2078]
[1739827470301,0.58783405,2747.0,2746.7,3.2078]
[1739827470701,0.00545405,2747.0,2746.7,3.2078]
[1739827471204,0.00545405,2747.0,2746.5,0.00545405]
[1739827471397,0.58241,2746.9,2746.7,3.2078]
[1739827471595,0.58241,2746.8,2746.7,3.2078]
[1739827472204,0.64653494,2746.8,2746.7,3.2078]
[1739827472706,0.58241,2746.8,2746.7,3.2078]
[1739827473404,0.64653355,2746.8,2746.7,3.2078]
[1739827473808,0.58245,2746.6,2746.5,0.00545405]
[1739827474007,3.11545,2746.6,2746.5,0.00545405]
[1739827474300,2.533,2746.6,2746.5,0.00545405]
[1739827474500,3.11545,2746.6,2746.5,0.00545405]
[1739827475207,3.75547972,2746.6,2746.5,0.00545405]
[1739827476410,3.69135,2746.6,2746.5,0.00545405]
[1739827476607,3.75547979,2746.6,2746.5,0.00545405]
[1739827478007,3.17302979,2746.6,2746.0,0.5786]
[1739827478211,0.58254,2746.2,2746.0,3.7864]
[1739827478409,3.0912,2746.1,2746.0,3.7864]
[1739827480407,3.67376,2746.1,2746.0,3.7864]
[1739827480720,0.58259,2746.0,2745.8,0.00366981]
[1739827480909,0.58259,2746.0,2745.8,0.55466981]
[1739827481304,6.8458324,2746.1,2745.8,0.55466981]
[1739827481618,1.1291,2746.0,2745.8,0.55466981]
[1739827482116,3.0912,2746.1,2745.8,0.55466981]
[1739827482311,3.0912,2746.1,2745.9,0.5617]
[1739827482507,3.0912,2746.1,2745.8,0.55466981]
[1739827482508,6.8458324,2746.1,2745.8,0.55466981]
[1739827483517,0.58259,2746.0,2745.8,0.55466981]
[1739827483723,0.5826,2745.9,2745.8,0.55466981]
[1739827484319,6.8458324,2746.1,2745.8,0.55466981]
[1739827484509,0.06414434,2746.0,2745.8,0.55466981]
[1739827485215,0.5826,2745.9,2745.8,0.55466981]
[1739827485407,0.64674434,2745.9,2745.8,0.55466981]
[1739827485607,0.06414434,2745.9,2745.8,0.55466981]
[1739827485808,6.8458324,2746.1,2745.8,0.55466981]
[1739827486009,0.64673352,2746.0,2745.8,0.55466981]
[1739827486208,0.5826,2745.9,2745.8,0.55466981]
[1739827486409,6.8458324,2746.1,2745.8,0.55466981]
[1739827486611,0.5826,2745.9,2745.8,0.55466981]
[1739827487609,0.64674616,2745.9,2745.8,0.55466981]
[1739827488112,0.64674713,2745.9,2745.8,0.55466981]
[1739827488314,0.64674713,2745.9,2745.8,0.00366981]
[1739827488711,0.58269,2745.5,2745.2,0.5482]
[1739827488911,3.7546324,2745.7,2745.4,3.2078]
[1739827489107,3.11068,2745.6,2745.3,0.5281]
[1739827489311,0.58269,2745.5,2745.3,0.5281]
[1739827489613,3.7546324,2745.4,2745.3,0.5281]
[1739827489810,4.3373424,2745.4,2745.3,0.5281]
[1739827490012,4.40150099,2745.4,2745.3,0.5281]
[1739827490811,0.06415859,2745.4,2745.3,0.5281]
[1739827491011,1.55774134,2745.6,2745.3,1.0538]
[1739827491222,1.55774134,2745.6,2745.5,3.2078]
[1739827491414,0.00545405,2745.7,2745.5,3.2078]
[1739827491614,0.00545405,2745.7,2745.5,6.9624324]
[1739827491818,3.7546324,2746.5,2745.5,6.9624324]
[1739827491819,0.5306,2746.5,2745.5,12.9624324]
[1739827492121,0.18490393,2747.9,2746.4,3.2078]
[1739827492122,2.532,2747.0,2746.4,3.2078]
[1739827492318,2.59586506,2746.9,2746.5,1.0896]
[1739827492625,2.532,2746.9,2746.5,1.0896]
[1739827493019,2.53745405,2747.0,2746.7,3.2078]
[1739827500027,0.539,2746.9,2746.7,3.2078]
[1739827504133,4.76989358,2746.8,2746.5,0.5639]
[1739827504332,0.0638629,2746.7,2746.4,0.00545405]
[1739827504533,4.70603068,2746.5,2746.4,0.00545405]
[1739827504828,0.0638629,2746.5,2746.4,0.00545405]
[1739827505031,2.515,2746.6,2746.4,0.00545405]
[1739827505635,0.0638708,2746.5,2746.4,0.00545405]
[1739827506026,8.563,2746.6,2746.4,0.00545405]
[1739827506229,2.515,2746.6,2746.4,0.00545405]
[1739827507028,2.513,2746.5,2746.4,0.00545405]
[1739827507527,4.70603068,2746.8,2746.4,0.00545405]
[1739827507733,2.513,2746.7,2746.6,3.2078]
[1739827507931,0.539,2746.9,2746.6,3.2078]
[1739827508134,2.513,2746.8,2746.7,0.5632]
[1739827508827,4.70603068,2747.4,2746.7,0.5632]
[1739827509028,2.51645405,2747.0,2746.9,3.2078]
[1739827509630,2.51645405,2747.0,2746.9,3.50442476]
[1739827510128,0.00545405,2747.0,2746.9,3.50442476]
[1739827510436,2.511,2747.3,2746.9,3.50442476]
[1739827510638,2.513,2747.6,2747.2,3.2078]
[1739827510935,2.513,2747.6,2747.5,3.2078]
[1739827512737,2.51645405,2747.8,2747.5,3.2078]
[1739827513133,3.09866405,2747.8,2747.5,3.2078]
[1739827513333,0.58226,2747.6,2747.3,0.5632]
[1739827513835,1.13876,2747.6,2747.3,0.5632]
[1739827514228,0.5565,2747.6,2747.3,0.5632]
[1739827515026,3.75309721,2747.5,2747.3,0.5632]
[1739827515231,2.51,2747.4,2747.1,3.2078]
[1739827515431,0.5823,2747.3,2747.1,3.2078]
[1739827515632,2.51,2747.4,2747.1,3.2078]
[1739827519643,2.51,2747.4,2747.1,3.79015]
[1739827520042,2.51,2747.4,2747.1,3.2078]
[1739827521550,2.51,2747.4,2747.1,3.79014]
[1739827522549,2.51,2747.4,2747.1,3.2078]
[1739827525248,2.51,2747.4,2747.2,0.5333]
[1739827525454,0.00545405,2747.8,2747.2,0.5333]
[1739827525750,0.00545405,2747.8,2747.7,3.2078]
[1739827526348,2.496,2748.0,2747.7,3.768]
[1739827526551,2.496,2748.0,2747.7,7.52109721]
[1739827527451,0.5504,2748.5,2747.7,7.52109721]
[1739827527658,0.00545405,2748.1,2748.0,3.75309721]
[1739827527955,6.96089721,2749.2,2748.0,6.96089721]
[1739827528154,0.582,2748.8,2748.5,3.2078]
[1739827528351,0.58194,2749.1,2748.5,3.2078]
[1739827528553,2.504,2749.2,2748.8,3.2078]
[1739827528852,0.5319,2749.2,2748.8,3.2078]
[1739827529056,0.00545405,2749.3,2749.1,3.2078]
[1739827529554,0.00545405,2749.3,2749.1,3.5023785]
[1739827529760,0.00545405,2749.3,2749.2,0.5315]
[1739827530847,0.00545405,2749.3,2749.1,3.2078]
[1739827531047,4.33499721,2749.2,2749.1,3.2078]
[1739827531251,4.90859721,2749.2,2749.1,3.2078]
[1739827531451,4.90859721,2749.2,2748.4,3.7393]
[1739827531452,0.58198,2748.9,2748.4,3.7393]
[1739827531655,6.26009721,2748.8,2748.4,3.7393]
[1739827532762,2.507,2748.8,2748.4,3.7393]
[1739827536250,2.499,2748.8,2748.4,3.7393]
[1739827538663,3.08099,2748.8,2748.4,3.7393]
[1739827538854,0.58201,2748.7,2748.4,3.7393]
[1739827539257,0.5714,2748.6,2748.4,3.7393]
[1739827545671,0.06382073,2748.5,2748.3,0.00545405]
[1739827545964,2.482,2748.4,2748.3,0.00545405]
[1739827546775,3.0585,2748.4,2748.3,0.00545405]
[1739827547265,2.486,2748.4,2748.3,0.00545405]
[1739827549474,3.06807,2748.4,2748.3,0.00545405]
[1739827549672,2.486,2748.4,2748.3,0.00545405]
[1739827554475,0.5765,2748.7,2748.3,0.00545405]
[1739827554775,3.63451,2748.7,2748.4,3.2078]
[1739827554974,3.63451,2748.7,2748.5,0.5623]
[1739827555467,0.1831117,2748.8,2748.5,0.5623]
[1739827556877,3.0548,2749.2,2748.7,3.2078]
[1739827557068,0.06380445,2749.1,2748.7,3.2078]
[1739827557268,3.63671,2749.2,2748.7,3.2078]
[1739827557671,3.43783696,2749.0,2748.7,3.2078]
[1739827557870,0.58199,2748.8,2748.7,3.2078]
[1739827558069,3.06199,2748.8,2748.7,3.2078]
[1739827558570,2.54381539,2748.8,2748.7,3.2078]
[1739827558779,3.06199,2748.8,2748.7,3.2078]
[1739827559278,3.12580511,2748.8,2748.7,3.2078]
[1739827559977,2.54381511,2748.8,2748.7,3.2078]
[1739827560174,2.48,2748.8,2748.7,3.2078]
[1739827560571,2.48,2748.8,2748.5,0.5623]
[1739827561281,2.66470727,2748.8,2748.5,0.5623]
[1739827563880,0.5748,2749.2,2748.7,3.2078]
[1739827564078,2.18415961,2749.0,2748.8,0.5513]
[1739827564388,2.18415961,2749.0,2748.9,3.2078]
[1739827566371,0.5748,2749.2,2748.9,3.2078]
[1739827566584,0.58193,2749.1,2748.9,3.2078]
[1739827566782,0.58193,2749.1,2748.8,0.5513]
[1739827567079,0.58193,2749.1,2749.0,3.2078]
[1739827567678,1.15671,2749.2,2749.0,3.2078]
[1739827567878,0.5748,2749.2,2749.0,3.2078]
[1739827568578,0.58192,2749.1,2749.0,3.2078]
[1739827569276,0.5748,2749.2,2749.0,3.2078]
[1739827569886,0.58192,2749.1,2749.0,3.2078]
[1739827570185,0.58201,2748.7,2748.5,0.5623]
[1739827570385,0.5669,2748.6,2748.5,0.5623]
[1739827573484,0.5669,2748.6,2748.3,3.78965405]
[1739827573680,0.58205,2748.5,2748.3,3.78965405]
[1739827573887,0.5669,2748.6,2748.3,3.78965405]
[1739827574190,1.14893,2748.6,2748.3,3.78965405]
[1739827575487,0.5669,2748.6,2748.3,3.78965405]
[1739827576287,0.58206,2748.5,2748.3,3.21325405]
[1739827576489,1.13517,2748.4,2748.3,3.21325405]
[1739827576695,0.5531,2748.4,2748.3,3.21325405]
[1739827578195,1.13517,2748.4,2748.3,3.21325405]
[1739827578892,3.0101,2748.4,2748.3,3.21325405]
[1739827579096,2.457,2748.4,2748.3,3.21325405]
[1739827582590,0.1835899,2748.8,2748.3,3.21325405]
[1739827582783,2.454,2748.7,2748.3,3.21325405]
[1739827582986,2.455,2748.9,2748.3,3.21325405]
[1739827583287,3.03697,2748.9,2748.3,3.21325405]
[1739827583895,0.58199,2748.8,2748.3,3.21325405]
[1739827585089,2.455,2748.9,2748.3,3.21325405]
[1739827585291,2.451,2748.9,2748.6,3.2078]
[1739827585491,2.451,2748.9,2748.7,1.0794]
[1739827587188,2.448,2748.9,2748.7,1.0794]
[1739827588097,3.02997,2748.9,2748.7,1.0794]
[1739827588589,2.448,2748.9,2748.7,1.0794]
[1739827589597,0.00545405,2749.3,2748.7,4.51723696]
[1739827589792,0.00545405,2749.3,2748.9,3.2078]
[1739827590097,0.00545405,2749.3,2748.9,3.78975]
[1739827590291,0.00545405,2749.3,2748.9,3.2078]
[1739827590486,0.00545405,2749.3,2749.2,3.2078]
[1739827590996,2.62755192,2750.2,2749.4,0.58185]
[1739827591200,2.62755192,2750.2,2749.7,3.2078]
[1739827591590,2.9831,2750.4,2750.0,3.2078]
[1739827591795,3.2078,2751.3,2750.3,3.2078]
[1739827591999,0.58152,2751.0,2750.6,3.2078]
[1739827592199,3.2078,2751.3,2750.6,3.2078]
[1739827592200,0.00545405,2751.1,2750.6,3.2078]
[1739827592995,4.02480101,2751.1,2750.6,3.2078]
[1739827593194,3.44329101,2751.1,2750.6,3.2078]
[1739827593500,0.00545405,2751.1,2750.6,3.2078]
[1739827593800,0.00545405,2751.1,2750.9,3.2078]
[1739827593998,3.2078,2751.9,2751.0,7.01693696]
[1739827594194,3.2078,2751.9,2751.3,3.2078]
[1739827594905,7.21922163,2751.9,2751.3,3.2078]
[1739827595103,2.476,2751.8,2751.3,3.2078]
[1739827595401,3.05736,2751.8,2751.3,3.21325405]
[1739827595794,2.476,2751.8,2751.3,3.21325405]
[1739827595995,3.43007163,2751.6,2751.3,3.21325405]
[1739827596298,0.58143,2751.5,2751.3,0.00545405]
[1739827597093,0.58144,2751.4,2751.3,0.00545405]
[1739827597298,0.00545405,2751.9,2751.3,6.64332568]
[1739827597491,0.00545405,2751.9,2751.6,3.2078]
[1739827598293,2.49245405,2751.9,2751.6,3.2078]
[1739827598698,0.58137,2751.8,2751.6,3.2078]
[1739827599191,5.92247149,2751.9,2751.3,3.21325405]
[1739827599395,6.50381149,2751.9,2751.3,3.21325405]
[1739827599595,5.92247149,2751.9,2751.3,3.21325405]
[1739827599796,0.58137,2751.7,2751.3,3.21325405]
[1739827600193,5.92247149,2751.9,2751.3,3.21325405]
[1739827600398,0.58137,2751.7,2751.3,3.21325405]
[1739827600598,5.92247149,2751.9,2751.3,3.21325405]
[1739827600802,0.58144,2751.4,2751.3,0.00545405]
[1739827600996,3.06544,2751.4,2751.3,0.00545405]
[1739827602298,3.12919382,2751.4,2751.3,0.00545405]
[1739827602499,6.33699615,2751.4,2751.3,0.00545405]
[1739827602798,3.27156224,2751.4,2750.9,3.43001744]
[1739827603000,1.0906,2751.5,2751.3,3.2078]
[1739827603001,0.18198279,2751.5,2751.3,3.2078]
[1739827603201,0.18198279,2751.5,2751.4,0.5405]
[1739827603597,0.00177906,2751.5,2751.4,0.5405]
[1739827604301,0.00545405,2751.9,2751.4,0.5405]
[1739827604500,0.00545405,2751.9,2751.7,3.2078]
[1739827607107,0.00545405,2751.9,2751.7,3.78917]
[1739827607307,6.84548,2752.7,2751.7,3.2078]
[1739827607518,0.64465998,2752.6,2752.0,3.2078]
[1739827607710,0.06347178,2752.5,2752.1,0.5451]
[1739827609206,0.00545405,2752.6,2752.2,4.29697627]
[1739827609406,283.911,2756.7,2752.5,4.29697627]
[1739827609407,3.2078,2753.4,2752.5,4.29697627]
[1739827609608,3.2078,2753.4,2752.9,3.2078]
[1739827609908,3.2078,2753.4,2752.6,3.2078]
[1739827610298,0.58106,2753.2,2752.7,0.5395]
[1739827610503,0.00363604,2753.3,2752.7,0.54495405]
[1739827610703,2.533,2753.1,2752.7,0.00545405]
[1739827611414,2.533,2753.1,2752.9,3.2078]
[1739827612312,2.534,2753.2,2752.9,3.2078]